bitfinex-derivatives/quotes_BTCF0:USTF0_20250505
["timestamp","ask_amount","ask_price","bid_price","bid_amount"]
[1746473033583,0.2110037,94790.0,94787.0,0.0527524]
[1746473033784,0.3319995,94792.0,94791.0,0.211001]
[1746473034089,0.211006,94789.0,94787.0,0.2637604]
[1746473034290,0.001,94792.0,94791.0,0.211001]
[1746473035093,0.2637532,94791.0,94790.0,0.2110032]
[1746473036195,0.3837532,94791.0,94790.0,0.2110032]
[1746473038900,0.3310028,94791.0,94790.0,0.2110032]
[1746473039497,0.12,94791.0,94790.0,0.2110032]
[1746473039802,0.331001,94791.0,94790.0,0.2110032]
[1746473040398,0.37460665,94791.0,94790.0,0.2110032]
[1746473041800,0.16360565,94791.0,94790.0,0.2110032]
[1746473042703,0.16360565,94791.0,94790.0,0.2730032]
[1746473043202,0.04360565,94791.0,94790.0,0.2730032]
[1746473046198,0.04360565,94791.0,94790.0,0.6338032]
[1746473046906,0.19146374,94797.0,94796.0,0.2109899]
[1746473047803,0.19146374,94797.0,94796.0,0.2432899]
[1746473048006,0.19246374,94797.0,94796.0,0.2432899]
[1746473048507,0.0315,94797.0,94796.0,0.2432899]
[1746473049101,0.2424876,94797.0,94796.0,0.2432899]
[1746473049607,0.2444876,94797.0,94796.0,0.2432899]
[1746473050105,0.0335,94797.0,94796.0,0.2432899]
[1746473051809,0.0636,94797.0,94796.0,0.2432899]
[1746473052303,0.10720239,94797.0,94796.0,0.2432899]
[1746473055104,0.22720239,94797.0,94796.0,0.2432899]
[1746473055305,0.43818999,94797.0,94796.0,0.2109899]
[1746473056709,0.22720239,94797.0,94796.0,0.2109899]
[1746473057208,0.10720239,94797.0,94796.0,0.2109899]
[1746473059313,0.31818999,94797.0,94796.0,0.2109899]
[1746473066220,0.43818999,94797.0,94796.0,0.2109899]
[1746473067213,0.31818999,94797.0,94796.0,0.2109899]
[1746473068619,0.2109921,94795.0,94794.0,0.2746935]
[1746473068918,0.2109921,94795.0,94794.0,0.2109935]
[1746473069107,0.3309921,94795.0,94794.0,0.2109935]
[1746473069705,0.3329921,94795.0,94794.0,0.2109935]
[1746473070721,0.37859449,94795.0,94794.0,0.2109935]
[1746473072115,0.2109965,94793.0,94792.0,0.275318]
[1746473072319,0.2109965,94793.0,94792.0,0.09592]
[1746473072512,0.2109965,94793.0,94792.0,0.3069188]
[1746473072713,0.2737965,94793.0,94792.0,0.3069188]
[1746473073615,0.2757965,94793.0,94792.0,0.3069188]
[1746473073919,0.2777965,94793.0,94792.0,0.3069188]
[1746473074410,0.48267307,94793.0,94792.0,0.3069188]
[1746473075825,0.45047307,94793.0,94792.0,0.3069188]
[1746473076114,0.23947657,94793.0,94792.0,0.3069188]
[1746473076314,0.45047307,94793.0,94792.0,0.3069188]
[1746473077822,0.28919889,94793.0,94792.0,0.3069188]
[1746473083818,0.07820239,94793.0,94792.0,0.2425988]
[1746473084523,0.07820239,94793.0,94792.0,0.2757988]
[1746473085621,0.04760239,94793.0,94792.0,0.2757988]
[1746473086225,0.04760239,94793.0,94792.0,0.4601188]
[1746473087132,0.04760239,94793.0,94792.0,0.3401188]
[1746473090827,0.04760239,94793.0,94792.0,0.2757988]
[1746473091035,0.25859889,94793.0,94792.0,0.2757988]
[1746473091237,0.25859889,94793.0,94792.0,0.0648]
[1746473091437,0.04760239,94793.0,94792.0,0.0648]
[1746473091735,0.10035199,94793.0,94783.0,0.0328]
[1746473092035,0.263756,94790.0,94784.0,0.0638]
[1746473092230,0.0612,94789.0,94788.0,0.2110077]
[1746473092534,0.2722054,94789.0,94788.0,0.2110077]
[1746473093133,0.2722054,94789.0,94788.0,0.2420077]
[1746473093433,0.0622,94789.0,94788.0,0.2420077]
[1746473094131,0.2732054,94789.0,94788.0,0.2420077]
[1746473094330,0.0622,94789.0,94788.0,0.2420077]
[1746473094526,0.0632,94789.0,94788.0,0.2420077]
[1746473095135,0.1832,94789.0,94788.0,0.2420077]
[1746473095537,0.22680239,94789.0,94788.0,0.2420077]
[1746473097235,0.19580239,94789.0,94788.0,0.2420077]
[1746473098227,0.07580239,94789.0,94788.0,0.2420077]
[1746473102533,0.10630239,94789.0,94788.0,0.2420077]
[1746473104043,0.0627,94789.0,94788.0,0.2420077]
[1746473105647,0.2110121,94786.0,94785.0,0.06432]
[1746473106136,0.3310121,94786.0,94785.0,0.06432]
[1746473106842,0.3320121,94786.0,94785.0,0.2753344]
[1746473107340,0.3330121,94786.0,94785.0,0.2753344]
[1746473107735,0.3330121,94786.0,94785.0,0.06432]
[1746473108340,0.21836203,94786.0,94782.0,0.00158257]
[1746473108541,0.2110188,94783.0,94782.0,0.00158257]
[1746473108944,0.2110188,94783.0,94782.0,0.21260357]
[1746473109141,0.3310188,94783.0,94782.0,0.21260357]
[1746473111344,0.3310188,94783.0,94782.0,0.00158257]
[1746473112449,0.3310188,94783.0,94782.0,0.21260357]
[1746473112744,0.37462733,94783.0,94782.0,0.21260357]
[1746473113745,0.37462733,94783.0,94782.0,0.00158257]
[1746473117246,0.37462733,94783.0,94782.0,0.21260357]
[1746473118150,0.25462733,94783.0,94782.0,0.21260357]
[1746473118548,0.25462733,94783.0,94782.0,0.00158257]
[1746473120252,0.37462733,94783.0,94782.0,0.00158257]
[1746473120754,0.48013133,94783.0,94782.0,0.00158257]
[1746473121353,0.2110344,94776.0,94763.0,0.00158282]
[1746473121551,0.2110611,94764.0,94763.0,0.00158282]
[1746473121750,0.5718611,94764.0,94763.0,0.00158282]
[1746473122143,0.6918611,94764.0,94763.0,0.00158282]
[1746473122540,0.7553611,94764.0,94763.0,0.00158282]
[1746473125844,0.79896963,94764.0,94763.0,0.00158282]
[1746473126249,0.80705351,94764.0,94763.0,0.00158282]
[1746473127156,0.68705351,94764.0,94763.0,0.21264612]
[1746473127349,0.68705351,94764.0,94763.0,0.00158282]
[1746473129243,0.80705351,94764.0,94763.0,0.00158282]
[1746473130354,0.68705351,94764.0,94763.0,0.00158282]
[1746473131154,0.80705351,94764.0,94763.0,0.00158282]
[1746473132159,0.68705351,94764.0,94763.0,0.00158282]
[1746473132355,0.07490853,94764.0,94763.0,0.21264612]
[1746473132661,0.07590853,94764.0,94763.0,0.21264612]
[1746473132959,0.28696963,94764.0,94763.0,0.21264612]
[1746473133161,0.28696963,94764.0,94763.0,0.33264612]
[1746473133658,0.07590853,94764.0,94763.0,0.33264612]
[1746473133855,0.28696963,94764.0,94763.0,0.33264612]
[1746473134054,0.07590853,94764.0,94763.0,0.33264612]
[1746473134252,0.04560853,94764.0,94763.0,0.21264612]
[1746473134761,0.04560853,94764.0,94763.0,0.31817011]
[1746473135159,0.04560853,94764.0,94763.0,0.43817011]
[1746473137464,0.002,94764.0,94763.0,0.43817011]
[1746473138167,0.002,94764.0,94763.0,0.33264612]
[1746473149864,0.002,94764.0,94763.0,0.39624612]
[1746473154968,0.002,94764.0,94763.0,0.36534612]
[1746473155172,0.0341,94764.0,94763.0,0.00158282]
[1746473155474,0.0654,94764.0,94763.0,0.21264612]
[1746473155767,0.0654,94764.0,94763.0,0.00158282]
[1746473155966,0.0654,94764.0,94763.0,0.21264612]
[1746473155967,0.4262,94764.0,94763.0,0.21264612]
[1746473156171,0.5462,94764.0,94763.0,0.21264612]
[1746473158377,0.4698199,94764.0,94763.0,0.21264612]
[1746473158568,0.0769199,94764.0,94763.0,0.21264612]
[1746473159275,0.0769199,94764.0,94763.0,0.27724612]
[1746473159468,0.0769199,94764.0,94763.0,0.21264612]
[1746473159869,0.0769199,94764.0,94763.0,0.00158282]
[1746473160171,0.407981,94764.0,94763.0,0.00158282]
[1746473161679,0.513505,94764.0,94763.0,0.00158282]
[1746473162278,0.2110856,94753.0,94752.0,0.06432]
[1746473162580,0.0527736,94750.0,94747.0,0.00158316]
[1746473162769,0.2110968,94748.0,94747.0,0.00158316]
[1746473162972,0.2110968,94748.0,94747.0,0.21268216]
[1746473163176,0.0637,94749.0,94748.0,0.2110968]
[1746473163377,0.2428945,94749.0,94748.0,0.2110968]
[1746473164078,0.3628945,94749.0,94748.0,0.2110968]
[1746473164378,0.3628945,94749.0,94748.0,0.2130968]
[1746473164579,0.3628945,94749.0,94748.0,0.002]
[1746473164780,0.3628945,94749.0,94748.0,0.004]
[1746473165081,0.3628945,94749.0,94748.0,0.2150968]
[1746473165281,0.3628945,94749.0,94748.0,0.004]
[1746473166283,0.4065144,94749.0,94748.0,0.004]
[1746473174783,0.49679522,94749.0,94748.0,0.004]
[1746473175378,0.49679522,94749.0,94748.0,0.2150968]
[1746473175585,0.49679522,94749.0,94748.0,0.004]
[1746473176186,0.37679522,94749.0,94748.0,0.004]
[1746473176885,0.37679522,94749.0,94748.0,0.2150968]
[1746473177286,0.37679522,94749.0,94748.0,0.004]
[1746473177690,0.2428945,94749.0,94748.0,0.004]
[1746473178780,0.2428945,94749.0,94748.0,0.2150968]
[1746473178987,0.2428945,94749.0,94748.0,0.004]
[1746473180789,0.28652052,94749.0,94748.0,0.004]
[1746473181096,0.28652052,94749.0,94748.0,0.124]
[1746473182396,0.28652052,94749.0,94748.0,0.122]
[1746473182596,0.28752052,94749.0,94748.0,0.122]
[1746473183395,0.0527784,94741.0,94726.0,0.3608]
[1746473183699,0.2111279,94734.0,94730.0,0.01050758]
[1746473183891,0.2111279,94734.0,94732.0,0.2111321]
[1746473184092,0.2436279,94734.0,94733.0,0.12158328]
[1746473184800,0.2436279,94734.0,94733.0,0.33271348]
[1746473185100,0.2426279,94734.0,94733.0,0.33271348]
[1746473185295,0.2426279,94734.0,94733.0,0.12158328]
[1746473185494,0.2416279,94734.0,94733.0,0.12158328]
[1746473186000,0.2416279,94734.0,94733.0,0.12358328]
[1746473186599,0.2416279,94734.0,94733.0,0.12558328]
[1746473186903,0.28525392,94734.0,94733.0,0.12558328]
[1746473187897,0.29319332,94734.0,94733.0,0.12358328]
[1746473188097,0.29619332,94734.0,94733.0,0.12358328]
[1746473188299,0.29619332,94734.0,94733.0,0.12158328]
[1746473188505,0.29919332,94734.0,94733.0,0.12158328]
[1746473196910,0.29919332,94734.0,94733.0,0.33271348]
[1746473197610,0.29919332,94734.0,94733.0,0.12158328]
[1746473197799,0.29919332,94734.0,94733.0,0.18238328]
[1746473199009,0.26669332,94734.0,94733.0,0.18238328]
[1746473199402,0.26649334,94734.0,94733.0,0.18238328]
[1746473199810,0.29739334,94734.0,94733.0,0.18238328]
[1746473201004,0.29639334,94734.0,94733.0,0.18238328]
[1746473201714,0.29739334,94734.0,94733.0,0.18238328]
[1746473202012,0.29539334,94734.0,94733.0,0.18238328]
[1746473202315,0.29839334,94734.0,94733.0,0.18238328]
[1746473206507,0.29839334,94734.0,94733.0,0.1808]
[1746473212505,0.29839334,94734.0,94700.0,0.1]
[1746473212818,0.2111614,94719.0,94718.0,0.06424]
[1746473213320,0.2111681,94716.0,94715.0,9e-08]
[1746473214221,0.2111681,94716.0,94715.0,0.07842179]
[1746473214514,0.2442681,94716.0,94715.0,0.04257089]
[1746473215320,0.2482681,94716.0,94715.0,0.04257089]
[1746473217217,0.0527971,94707.0,94700.0,0.1]
[1746473217415,0.2112015,94701.0,94700.0,0.1]
[1746473217821,0.2767015,94701.0,94700.0,0.1]
[1746473218015,0.2767015,94701.0,94700.0,0.1315]
[1746473218316,0.2767015,94701.0,94700.0,0.2545]
[1746473218922,0.2112015,94701.0,94700.0,0.2545]
[1746473219421,0.2436015,94701.0,94700.0,0.2545]
[1746473220213,0.2436015,94701.0,94700.0,0.2565]
[1746473221822,0.2436015,94701.0,94700.0,0.2555]
[1746473222123,0.2112015,94701.0,94700.0,0.2555]
[1746473223523,0.2423015,94701.0,94700.0,0.2555]
[1746473224113,0.5720015,94702.0,94701.0,0.2112015]
[1746473224317,0.3608,94721.0,94701.0,0.498196]
[1746473224521,0.37193472,94708.0,94707.0,0.2111881]
[1746473225123,0.37193472,94708.0,94707.0,0.3311881]
[1746473225420,0.16074802,94708.0,94707.0,0.3948881]
[1746473226214,0.16074802,94708.0,94707.0,0.56475609]
[1746473227016,0.04364281,94708.0,94707.0,0.56475609]
[1746473227226,0.04364281,94708.0,94707.0,0.56575609]
[1746473231116,0.34490174,94714.0,94713.0,0.2111748]
[1746473231421,0.34490174,94714.0,94713.0,0.5719748]
[1746473231718,0.34490174,94714.0,94713.0,0.2111748]
[1746473231925,0.13372924,94714.0,94713.0,0.2745748]
[1746473232126,0.13372924,94714.0,94713.0,0.3945748]
[1746473232423,0.13472924,94714.0,94713.0,0.3945748]
[1746473232624,0.34590174,94714.0,94713.0,0.3945748]
[1746473233021,0.34590174,94714.0,94713.0,0.1834]
[1746473233232,0.34690174,94714.0,94713.0,0.1834]
[1746473234618,0.2131725,94714.0,94713.0,0.1834]
[1746473235420,0.2131725,94714.0,94713.0,0.3945748]
[1746473236425,0.2131725,94714.0,94713.0,0.1834]
[1746473237026,0.5739725,94714.0,94713.0,0.12]
[1746473239029,0.61761319,94714.0,94713.0,0.12]
[1746473243223,0.5739725,94714.0,94713.0,0.12]
[1746473244528,0.6052725,94714.0,94713.0,0.12]
[1746473246229,0.6052725,94714.0,94713.0,0.3311748]
[1746473246230,0.3941,94714.0,94713.0,0.3311748]
[1746473246430,0.002,94714.0,94713.0,0.3617748]
[1746473246830,0.002,94714.0,94713.0,0.3919748]
[1746473249833,0.0351,94714.0,94713.0,0.3919748]
[1746473250834,0.07873884,94714.0,94713.0,0.3919748]
[1746473253030,0.04563884,94714.0,94713.0,0.3919748]
[1746473254135,0.20638303,94714.0,94713.0,0.3919748]
[1746473255436,0.20638303,94714.0,94713.0,0.4975548]
[1746473256030,0.20638303,94714.0,94713.0,0.5618348]
[1746473256431,0.20638303,94714.0,94713.0,0.56988305]
[1746473257636,0.04563884,94714.0,94713.0,0.56988305]
[1746473261141,0.04563884,94714.0,94713.0,0.46430305]
[1746473261642,0.002,94714.0,94713.0,0.46430305]
[1746473265443,0.16274419,94714.0,94713.0,0.46430305]
[1746473267144,0.37391669,94714.0,94713.0,0.4260548]
[1746473267644,0.37391669,94714.0,94713.0,0.3954548]
[1746473268141,0.40651669,94714.0,94713.0,0.4259548]
[1746473270148,0.2457725,94714.0,94713.0,0.4259548]
[1746473270939,0.2457725,94714.0,94713.0,0.3954548]
[1746473271336,0.2457725,94714.0,94713.0,0.3954148]
[1746473273249,0.2112015,94701.0,94700.0,0.1]
[1746473273450,0.211235,94686.0,94674.0,0.36238433]
[1746473273750,0.572035,94686.0,94674.0,0.36238433]
[1746473274651,0.634835,94686.0,94674.0,0.36238433]
[1746473274851,0.64267278,94686.0,94674.0,0.36238433]
[1746473275056,0.64267278,94686.0,94685.0,0.12205613]
[1746473275851,0.64067278,94686.0,94685.0,0.12205613]
[1746473276646,0.64067278,94686.0,94685.0,0.12305613]
[1746473276853,0.64067278,94686.0,94685.0,0.13886376]
[1746473278860,0.64067278,94686.0,94685.0,0.12305613]
[1746473280552,0.44061697,94686.0,94685.0,0.12305613]
[1746473281171,0.44061697,94686.0,94685.0,0.13885347]
[1746473281668,0.44061697,94686.0,94685.0,0.35009067]
[1746473281857,0.40901697,94686.0,94685.0,0.35009067]
[1746473282265,0.40901697,94686.0,94685.0,0.41229067]
[1746473284162,0.40901697,94686.0,94685.0,0.20105347]
[1746473284768,0.38173753,94686.0,94685.0,0.20105347]
[1746473285869,0.38173753,94686.0,94685.0,0.41229067]
[1746473286269,0.37389975,94686.0,94685.0,0.41229067]
[1746473287869,0.37389975,94686.0,94685.0,0.13885347]
[1746473288373,0.43869975,94686.0,94685.0,0.13885347]
[1746473288871,0.305235,94686.0,94685.0,0.13885347]
[1746473296177,0.240435,94686.0,94685.0,0.35009067]
[1746473296474,0.242435,94686.0,94685.0,0.35009067]
[1746473298975,0.242435,94686.0,94685.0,0.13885347]
[1746473300674,0.242435,94686.0,94685.0,0.35009067]
[1746473302179,0.242435,94686.0,94685.0,0.13885347]
[1746473302983,0.242435,94686.0,94685.0,0.20285347]
[1746473305981,0.242435,94686.0,94685.0,0.41409067]
[1746473308878,0.242435,94686.0,94685.0,0.20285347]
[1746473309080,0.272635,94686.0,94685.0,0.41409067]
[1746473314093,0.242435,94686.0,94685.0,0.41409067]
[1746473317094,0.242435,94686.0,94685.0,0.20285347]
[1746473317294,0.242435,94686.0,94685.0,0.41409067]
[1746473318195,0.242435,94686.0,94685.0,0.20285347]
[1746473318794,0.275735,94686.0,94685.0,0.13885347]
[1746473318995,0.275735,94686.0,94685.0,0.35009067]
[1746473322497,0.43664668,94686.0,94685.0,0.35009067]
[1746473325600,0.46814668,94686.0,94685.0,0.35009067]
[1746473326704,0.43484668,94686.0,94685.0,0.35009067]
[1746473326902,0.273935,94686.0,94685.0,0.35009067]
[1746473327404,0.273935,94686.0,94685.0,0.13885347]
[1746473327702,0.306435,94686.0,94685.0,0.13885347]
[1746473330696,0.2112796,94666.0,94656.0,0.06424]
[1746473330999,0.2112796,94666.0,94665.0,0.5720818]
[1746473331207,0.2112796,94666.0,94665.0,0.6920818]
[1746473331406,0.2434774,94667.0,94666.0,0.2112796]
[1746473331598,0.2434774,94667.0,94666.0,0.2752796]
[1746473332299,0.2434774,94667.0,94666.0,0.3952796]
[1746473332501,0.2434774,94667.0,94666.0,0.4002796]
[1746473333195,0.2434774,94667.0,94666.0,0.4052796]
[1746473333391,0.0322,94667.0,94666.0,0.194]
[1746473333698,0.2640841,94672.0,94671.0,0.2112684]
[1746473334007,0.2430718,94670.0,94669.0,0.2112729]
[1746473334198,0.2430718,94670.0,94667.0,0.328335]
[1746473334199,0.2112751,94668.0,94667.0,0.328335]
[1746473334399,0.2112751,94668.0,94667.0,0.3060162]
[1746473334802,0.2082751,94668.0,94667.0,0.3060162]
[1746473335104,0.2042751,94668.0,94667.0,0.3060162]
[1746473335305,0.2042751,94668.0,94667.0,0.4260162]
[1746473335504,0.2042751,94668.0,94667.0,0.4300162]
[1746473335708,0.2042751,94668.0,94667.0,0.4340162]
[1746473336897,0.2430733,94670.0,94669.0,0.2112729]
[1746473337708,0.2112751,94668.0,94667.0,0.22274]
[1746473337905,0.2082751,94668.0,94667.0,0.18824]
[1746473338403,0.2082751,94668.0,94667.0,0.124]
[1746473338603,0.6329751,94668.0,94667.0,0.124]
[1746473338802,0.6319751,94668.0,94667.0,0.12]
[1746473339402,0.6319751,94668.0,94667.0,0.122]
[1746473339895,0.6319751,94668.0,94667.0,0.124]
[1746473340502,0.6319751,94668.0,94667.0,0.122]
[1746473340702,0.6339751,94668.0,94667.0,0.122]
[1746473340903,0.6349751,94668.0,94667.0,0.12]
[1746473342611,0.6349751,94668.0,94667.0,0.3312774]
[1746473343112,0.6349751,94668.0,94667.0,0.34701675]
[1746473344005,0.0348,94668.0,94667.0,0.34701675]
[1746473344409,0.0348,94668.0,94667.0,0.70781675]
[1746473344609,0.2460751,94668.0,94667.0,0.70781675]
[1746473345115,0.0348,94668.0,94667.0,0.70781675]
[1746473345306,0.2460751,94668.0,94667.0,0.70781675]
[1746473345502,0.0348,94668.0,94667.0,0.70781675]
[1746473345707,0.2460751,94668.0,94667.0,0.70781675]
[1746473346401,0.0348,94668.0,94667.0,0.70781675]
[1746473346599,0.003,94668.0,94667.0,0.49653935]
[1746473346805,0.2142751,94668.0,94667.0,0.70781675]
[1746473347008,0.5750751,94668.0,94667.0,0.13573935]
[1746473347211,0.5750751,94668.0,94667.0,0.34701675]
[1746473347415,0.5750751,94668.0,94667.0,0.13573935]
[1746473347613,0.6057751,94668.0,94667.0,0.13573935]
[1746473347813,0.6381751,94668.0,94667.0,0.13573935]
[1746473350416,0.6381751,94668.0,94667.0,0.34701675]
[1746473350618,0.6381751,94668.0,94667.0,0.13573935]
[1746473350807,0.6057751,94668.0,94667.0,0.34701675]
[1746473351818,0.2449751,94668.0,94667.0,0.13573935]
[1746473352416,0.2762751,94668.0,94667.0,0.13573935]
[1746473353412,0.2762751,94668.0,94667.0,0.16713935]
[1746473355218,0.6370751,94668.0,94667.0,0.13573935]
[1746473362242,0.2762751,94668.0,94667.0,0.13573935]
[1746473362437,0.6370751,94668.0,94667.0,0.13573935]
[1746473363943,0.2449751,94668.0,94667.0,0.34701675]
[1746473365344,0.2449751,94668.0,94667.0,0.37791675]
[1746473366036,0.2142751,94668.0,94667.0,0.37791675]
[1746473370938,0.2142751,94668.0,94667.0,0.16663935]
[1746473371344,0.2142751,94668.0,94667.0,0.37791675]
[1746473371546,0.003,94668.0,94667.0,0.41021675]
[1746473371740,0.001,94668.0,94667.0,0.41021675]
[1746473371939,0.003,94668.0,94667.0,0.41021675]
[1746473372543,0.002,94668.0,94667.0,0.41021675]
[1746473389473,0.002,94668.0,94667.0,0.77101675]
[1746473389664,0.002,94668.0,94667.0,0.7552774]
[1746473389871,0.002,94668.0,94667.0,0.7708476]
[1746473391767,0.18710862,94687.0,94667.0,0.73060219]
[1746473392067,0.18710862,94687.0,94686.0,0.211235]
[1746473392257,0.18710862,94687.0,94686.0,0.276635]
[1746473392655,0.18710862,94687.0,94686.0,0.2922052]
[1746473392869,0.18710862,94687.0,94686.0,0.3243052]
[1746473393069,0.18710862,94687.0,94686.0,0.3571052]
[1746473393371,0.18710862,94687.0,94686.0,0.4771052]
[1746473393761,0.19210862,94687.0,94686.0,0.4771052]
[1746473393962,0.005,94687.0,94686.0,0.4771052]
[1746473394163,0.0315,94692.0,94691.0,0.2112238]
[1746473394466,0.0623,94692.0,94691.0,0.2112238]
[1746473394668,0.0623,94692.0,94691.0,0.226794]
[1746473395171,0.0623,94692.0,94691.0,0.377994]
[1746473396871,0.0623,94692.0,94691.0,0.3624238]
[1746473397464,0.0623,94692.0,94691.0,0.37275016]
[1746473400074,0.0623,94692.0,94691.0,0.34155016]
[1746473400267,0.19606781,94692.0,94691.0,0.34155016]
[1746473400461,0.40728941,94692.0,94691.0,0.12]
[1746473401063,0.40728941,94692.0,94687.0,0.06536]
[1746473401270,0.2112305,94688.0,94687.0,0.06536]
[1746473401771,0.0619,94689.0,94688.0,0.2112305]
[1746473402173,0.0619,94689.0,94688.0,0.3312305]
[1746473402568,0.0619,94689.0,94688.0,0.3618305]
[1746473402969,0.0639,94689.0,94688.0,0.3618305]
[1746473403571,0.0321,94689.0,94688.0,0.3618305]
[1746473403972,0.0351,94689.0,94688.0,0.3618305]
[1746473404369,0.001,94716.0,94694.0,0.2112171]
[1746473404677,0.0305,94700.0,94694.0,0.2112171]
[1746473405073,0.0305,94700.0,94694.0,0.3312171]
[1746473405276,0.0305,94700.0,94694.0,0.3467443]
[1746473405581,0.0055,94695.0,94694.0,0.3467443]
[1746473406080,0.0015,94695.0,94694.0,0.3467443]
[1746473408788,0.0015,94695.0,94694.0,0.3467443]
[1746473411684,0.13509375,94695.0,94694.0,0.3467443]
[1746473414587,0.0015,94695.0,94694.0,0.3467443]
[1746473420888,0.0015,94695.0,94694.0,0.4118243]
[1746473421487,0.13359375,94701.0,94700.0,0.2112038]
[1746473421787,0.13359375,94701.0,94700.0,0.650531]
[1746473421989,0.16030758,94708.0,94707.0,0.2111881]
[1746473422193,0.16030758,94708.0,94707.0,0.2762681]
[1746473422383,0.15135389,94721.0,94710.0,0.0527951]
[1746473422590,0.0323,94720.0,94719.0,0.2111614]
[1746473422789,0.0323,94720.0,94719.0,0.2762414]
[1746473423187,0.0323,94720.0,94719.0,0.4117686]
[1746473423694,0.15535389,94721.0,94720.0,0.2111592]
[1746473424090,0.15535389,94721.0,94720.0,0.3311592]
[1746473424488,0.15535389,94721.0,94720.0,0.3466864]
[1746473425579,0.0313,94726.0,94720.0,0.1355272]
[1746473425783,0.0313,94726.0,94725.0,0.211148]
[1746473426190,0.0313,94726.0,94725.0,0.3466752]
[1746473427294,0.0453,94726.0,94725.0,0.3476752]
[1746473428393,0.0453,94726.0,94725.0,0.35845256]
[1746473430395,0.0453,94726.0,94725.0,0.42353256]
[1746473431690,0.0363,94726.0,94725.0,0.42253256]
[1746473432197,0.0373,94726.0,94725.0,0.42253256]
[1746473432398,0.0373,94726.0,94725.0,0.35745256]
[1746473432589,0.0373,94726.0,94725.0,0.42253256]
[1746473434696,0.0373,94726.0,94725.0,0.35745256]
[1746473434894,0.0373,94726.0,94725.0,0.42253256]
[1746473436292,0.0363,94726.0,94725.0,0.42253256]
[1746473437102,0.0363,94726.0,94725.0,0.35745256]
[1746473437292,0.0363,94726.0,94725.0,0.42253256]
[1746473438201,0.0333,94726.0,94725.0,0.42253256]
[1746473438393,0.0363,94726.0,94725.0,0.42253256]
[1746473441107,0.0363,94726.0,94725.0,0.21138456]
[1746473441108,0.2474458,94726.0,94725.0,0.21138456]
[1746473441509,0.0363,94726.0,94725.0,0.42253256]
[1746473442308,0.0693,94726.0,94725.0,0.42253256]
[1746473443606,0.0693,94726.0,94725.0,0.35745256]
[1746473443808,0.0693,94726.0,94725.0,0.42213256]
[1746473447406,0.0693,94726.0,94725.0,0.45513256]
[1746473449303,0.0363,94726.0,94725.0,0.45513256]
[1746473449503,0.0363,94726.0,94725.0,0.48813256]
[1746473454302,0.0363,94726.0,94725.0,0.45513256]
[1746473455909,0.0363,94726.0,94725.0,0.48653256]
[1746473457104,0.0015,94730.0,94729.0,0.2111391]
[1746473457506,0.0015,94730.0,94729.0,0.2746391]
[1746473457707,0.0015,94730.0,94729.0,0.2901663]
[1746473458201,0.0015,94730.0,94729.0,0.4101663]
[1746473458405,0.0045,94730.0,94729.0,0.4101663]
[1746473459114,0.0075,94730.0,94729.0,0.4101663]
[1746473459611,0.0075,94730.0,94729.0,0.1990272]
[1746473459806,0.0075,94730.0,94729.0,0.4101663]
[1746473460011,0.071,94730.0,94729.0,0.4101663]
[1746473460312,0.2821369,94730.0,94729.0,0.1355272]
[1746473460512,0.3877009,94730.0,94729.0,0.1355272]
[1746473461101,0.3877009,94730.0,94729.0,0.0155272]
[1746473462404,0.2111569,94721.0,94720.0,0.06468]
[1746473462611,0.5719569,94721.0,94720.0,0.06468]
[1746473462807,0.2111815,94710.0,94707.0,0.06468]
[1746473463009,0.2111859,94709.0,94708.0,0.2111853]
[1746473463208,0.0657,94709.0,94708.0,0.3311853]
[1746473463512,0.0657,94709.0,94708.0,0.37202911]
[1746473464117,0.0657,94709.0,94708.0,0.3615853]
[1746473464512,0.2768837,94709.0,94708.0,0.3615853]
[1746473464711,0.0657,94709.0,94708.0,0.3615853]
[1746473464909,0.0657,94709.0,94708.0,0.37214284]
[1746473465418,0.0637,94709.0,94708.0,0.16095754]
[1746473465614,0.0637,94709.0,94708.0,0.1829]
[1746473465823,0.0637,94709.0,94708.0,0.1839]
[1746473466013,0.2748837,94709.0,94708.0,0.1839]
[1746473466412,0.2748837,94709.0,94708.0,0.1829]
[1746473466718,0.2758837,94709.0,94708.0,0.1829]
[1746473468719,0.2778837,94709.0,94708.0,0.1829]
[1746473471522,0.0667,94709.0,94708.0,0.1829]
[1746473472216,0.0667,94709.0,94708.0,0.3940859]
[1746473480832,0.003,94709.0,94708.0,0.3940859]
[1746473484532,0.0336,94709.0,94708.0,0.3940859]
[1746473491638,0.2447837,94709.0,94708.0,0.3940859]
[1746473492836,0.0336,94709.0,94708.0,0.3940859]
[1746473493429,0.2447837,94709.0,94708.0,0.3940859]
[1746473494340,0.0336,94709.0,94708.0,0.3940859]
[1746473506545,0.2447837,94709.0,94708.0,0.3940859]
[1746473508545,0.2447837,94709.0,94708.0,0.1829]
[1746473508845,0.2447837,94709.0,94708.0,0.3940859]
[1746473511437,0.2762837,94709.0,94708.0,0.3940859]
[1746473515245,0.2762837,94709.0,94708.0,0.1829]
[1746473515450,0.2762837,94709.0,94708.0,0.3940859]
[1746473517451,0.2447837,94709.0,94708.0,0.3940859]
[1746473517749,0.2141837,94709.0,94708.0,0.3940859]
[1746473520643,0.2472837,94709.0,94708.0,0.3940859]
[1746473521244,0.2472837,94709.0,94708.0,0.1829]
[1746473521448,0.2472837,94709.0,94708.0,0.3940859]
[1746473523358,0.2472837,94709.0,94708.0,0.1829]
[1746473523556,0.2472837,94709.0,94708.0,0.1504]
[1746473523761,0.2112082,94698.0,94697.0,0.21121]
[1746473523949,0.0528031,94696.0,94686.0,0.3608]
[1746473524152,0.211235,94686.0,94685.0,0.00264027]
[1746473524654,0.349947,94686.0,94685.0,0.00264027]
[1746473524851,0.2112528,94678.0,94677.0,0.00158433]
[1746473525048,0.5720528,94678.0,94677.0,0.00158433]
[1746473525452,0.5710528,94678.0,94677.0,0.00158433]
[1746473525659,0.6342528,94678.0,94677.0,0.00158433]
[1746473526463,0.6342528,94678.0,94677.0,0.00458433]
[1746473528359,0.6031528,94678.0,94677.0,0.33583943]
[1746473528565,0.6031528,94678.0,94677.0,0.39793943]
[1746473529254,0.6031528,94678.0,94677.0,0.18668433]
[1746473533565,0.3608,94678.0,94677.0,0.39793943]
[1746473534266,0.2112294,94689.0,94688.0,0.2112305]
[1746473535068,0.2112294,94689.0,94688.0,0.3312305]
[1746473535465,0.2122294,94689.0,94688.0,0.3943305]
[1746473552278,0.2423294,94689.0,94688.0,0.3943305]
[1746473556276,0.2122294,94689.0,94688.0,0.3943305]
[1746473557181,0.001,94689.0,94688.0,0.3943305]
[1746473563790,0.2122283,94689.0,94688.0,0.1831]
[1746473564083,0.2122283,94689.0,94688.0,0.1531]
[1746473566388,0.2122283,94689.0,94688.0,0.3643305]